fUSD/lending_fUSD_20260601
["ID","MTS","AMOUNT","RATE_DAILY","PERIOD"]
[423691640,1780313442000,-180.64,9.526e-05,2]
[423691648,1780313442000,-205.0,9.8e-05,2]
[423691639,1780313442000,-500.0,9.512e-05,2]
[423691642,1780313442000,-150.57175261,9.528e-05,2]
[423691643,1780313442000,-420.0,9.564e-05,2]
[423691641,1780313442000,-250.0,9.528e-05,2]
[423691647,1780313442000,-166.66,9.677e-05,2]
[423691637,1780313442000,-1000.0,9.36e-05,2]
[423691644,1780313442000,-1680.0,9.564e-05,2]
[423691646,1780313442000,-255.0,9.574e-05,2]
[423691645,1780313442000,-193.0,9.573e-05,2]
[423691649,1780313442000,-209.21103511,9.965e-05,2]
[423691655,1780313442000,-180.64,0.00010002,2]
[423691651,1780313442000,-155.46161974,0.0001,2]
[423691654,1780313442000,-3405.36434717,0.0001,2]
[423691658,1780313442000,-166.90124495,0.00010248,2]
[423691719,1780313443000,-3292.0,0.00011572,2]
[423691720,1780313443000,-548.0,0.00011584,2]
[423691721,1780313443000,-171.0,0.00011844,2]
[423691722,1780313443000,-500.0,0.00011875,2]
[423691717,1780313443000,-180.64,0.00011431,2]
[423691713,1780313443000,-17196.83287661,0.00011303,2]
[423691715,1780313443000,-53798.80301719,0.00011379,2]
[423691716,1780313443000,-3510.11478826,0.000114,2]
[423691723,1780313443000,-180.64,0.00011907,2]
[423691705,1780313443000,-63736.88964845,0.00011099,2]
[423691718,1780313443000,-823.0,0.00011572,2]
[423691724,1780313443000,-53798.80301719,0.00011934,2]
[423691732,1780313443000,-487.03657759,0.00012415,2]
[423691727,1780313443000,-2190.10954945,0.000121,30]
[423691726,1780313443000,-1230.09181537,0.00012088,2]
[423691729,1780313443000,-173.39,0.00012329,2]
[423691728,1780313443000,-17196.83287661,0.00012202,2]
[423691730,1780313443000,-185.8,0.00012329,2]
[423691731,1780313443000,-180.64,0.00012383,2]
[423691733,1780313443000,-1229.5132104,0.00012474,2]
[423691734,1780313443000,-53798.80301719,0.00012488,2]
[423691736,1780313443000,-2377.90963849,0.00012558,2]
[423691735,1780313443000,-311.6409703,0.000125,2]
[423691738,1780313443000,-568.05121088,0.00012575,2]
[423691709,1780313443000,-53798.80301719,0.00011099,2]
[423691725,1780313443000,-40532.18,0.00012055,2]
[423691708,1780313443000,-53798.80301719,0.00011099,2]
[423691686,1780313443000,-4000.0,0.00010986,2]
[423691711,1780313443000,-4000.0,0.00011242,2]
[423691737,1780313443000,-213.01920409,0.00012575,2]
[423691681,1780313443000,-180.64,0.00010955,2]
[423691688,1780313443000,-500.0,0.00010998,6]
[423691682,1780313443000,-500.0,0.00010958,2]
[423691684,1780313443000,-500.0,0.00010958,4]
[423691683,1780313443000,-500.0,0.00010958,3]
[423691685,1780313443000,-150.0,0.00010959,2]
[423691687,1780313443000,-500.0,0.00010998,5]
[423691689,1780313443000,-500.0,0.00010998,7]
[423691691,1780313443000,-500.0,0.00010998,9]
[423691701,1780313443000,-63736.88964845,0.00011099,2]
[423691703,1780313443000,-63736.88964845,0.00011099,2]
[423691695,1780313443000,-63736.88964845,0.00011099,2]
[423691692,1780313443000,-500.0,0.00010998,10]
[423691690,1780313443000,-500.0,0.00010998,8]
[423691697,1780313443000,-63736.88964845,0.00011099,2]
[423691694,1780313443000,-3405.36434717,0.00011089,2]
[423691696,1780313443000,-63736.88964845,0.00011099,2]
[423691693,1780313443000,-394.3534077,0.00010998,11]
[423691699,1780313443000,-63736.88964845,0.00011099,2]
[423691704,1780313443000,-63736.88964845,0.00011099,2]
[423691714,1780313443000,-250.0,0.0001137,2]
[423691707,1780313443000,-53798.80301719,0.00011099,2]
[423691706,1780313443000,-400.0,0.00011099,2]
[423691712,1780313443000,-166.66,0.00011274,2]
[423691710,1780313443000,-63736.88964845,0.00011142,2]
[423691742,1780313443000,-746.45307977,0.0001275,2]
[423691751,1780313443000,-1347.8,0.00012974,2]
[423691739,1780313443000,-319.23,0.000127,2]
[423691778,1780313443000,-453.0,0.00013151,2]
[423691780,1780313443000,-453.0,0.00013151,2]
[423691781,1780313443000,-1249.0,0.00013151,2]
[423691791,1780313443000,-1249.0,0.00013151,2]
[423691783,1780313443000,-453.0,0.00013151,2]
[423691782,1780313443000,-1249.0,0.00013151,2]
[423691787,1780313443000,-453.0,0.00013151,2]
[423691789,1780313443000,-453.0,0.00013151,2]
[423691786,1780313443000,-1249.0,0.00013151,2]
[423691785,1780313443000,-453.0,0.00013151,2]
[423691784,1780313443000,-1249.0,0.00013151,2]
[423691790,1780313443000,-453.0,0.00013151,2]
[423691793,1780313443000,-453.0,0.00013151,2]
[423691803,1780313443000,-453.0,0.00013151,2]
[423691792,1780313443000,-500.0,0.00013151,2]
[423691804,1780313443000,-453.0,0.00013151,2]
[423691794,1780313443000,-1249.0,0.00013151,2]
[423691798,1780313443000,-500.0,0.00013151,2]
[423691799,1780313443000,-500.0,0.00013151,2]
[423691796,1780313443000,-453.0,0.00013151,2]
[423691795,1780313443000,-500.0,0.00013151,2]
[423691801,1780313443000,-453.0,0.00013151,2]
[423691800,1780313443000,-1249.0,0.00013151,2]
[423691797,1780313443000,-453.0,0.00013151,2]
[423691750,1780313443000,-500.0,0.00012973,2]
[423691777,1780313443000,-1249.0,0.00013151,2]
[423691775,1780313443000,-1249.0,0.00013151,2]
[423691788,1780313443000,-453.0,0.00013151,2]
[423691779,1780313443000,-1249.0,0.00013151,2]
[423691776,1780313443000,-453.0,0.00013151,2]
[423691747,1780313443000,-812.614596,0.00012888,2]
[423691748,1780313443000,-180.780285,0.00012888,2]
[423691749,1780313443000,-297.298022,0.00012888,2]
[423691745,1780313443000,-180.64,0.0001286,2]
[423691741,1780313443000,-4609.0,0.00012729,2]
[423691740,1780313443000,-1152.0,0.00012729,2]
[423691752,1780313443000,-53798.80301719,0.00013043,2]
[423691755,1780313443000,-17196.83287661,0.00013101,2]
[423691763,1780313443000,-500.0,0.00013151,2]
[423691766,1780313443000,-500.0,0.00013151,2]
[423691767,1780313443000,-500.0,0.00013151,2]
[423691764,1780313443000,-500.0,0.00013151,2]
[423691802,1780313443000,-1249.0,0.00013151,2]
[423691758,1780313443000,-500.0,0.00013151,2]
[423691759,1780313443000,-500.0,0.00013151,2]
[423691769,1780313443000,-500.0,0.00013151,2]
[423691771,1780313443000,-1249.0,0.00013151,2]
[423691774,1780313443000,-453.0,0.00013151,2]
[423691772,1780313443000,-1249.0,0.00013151,2]
[423691770,1780313443000,-179.15137862,0.00013151,2]
[423691773,1780313443000,-1249.0,0.00013151,2]
[423691761,1780313443000,-500.0,0.00013151,2]
[423691765,1780313443000,-500.0,0.00013151,2]
[423691760,1780313443000,-500.0,0.00013151,2]
[423691762,1780313443000,-500.0,0.00013151,2]
[423691768,1780313443000,-500.0,0.00013151,2]
[423691846,1780313444000,-500.0,0.00013151,2]
[423691841,1780313444000,-439.0,0.00013151,2]
[423691842,1780313444000,-361.53277954,0.00013151,2]
[423691832,1780313444000,-439.0,0.00013151,2]
[423691844,1780313444000,-439.0,0.00013151,2]
[423691850,1780313444000,-500.0,0.00013151,2]
[423691840,1780313444000,-500.0,0.00013151,2]
[423691838,1780313444000,-500.0,0.00013151,2]
[423691834,1780313444000,-500.0,0.00013151,2]
[423691848,1780313444000,-500.0,0.00013151,2]
[423691839,1780313444000,-500.0,0.00013151,2]
[423691849,1780313444000,-439.0,0.00013151,2]
[423691853,1780313444000,-439.0,0.00013151,2]
[423691847,1780313444000,-439.0,0.00013151,2]
[423691852,1780313444000,-502.83414164,0.00013151,2]
[423691862,1780313444000,-500.0,0.00013151,2]
[423691863,1780313444000,-184.20302166,0.00013151,2]
[423691851,1780313444000,-439.0,0.00013151,2]
[423691857,1780313444000,-439.0,0.00013151,2]
[423691858,1780313444000,-150.0,0.00013151,2]
[423691859,1780313444000,-500.0,0.00013151,2]
[423691855,1780313444000,-500.0,0.00013151,2]
[423691854,1780313444000,-439.0,0.00013151,2]
[423691856,1780313444000,-150.0,0.00013151,2]
[423691836,1780313444000,-500.0,0.00013151,2]
[423691843,1780313444000,-439.0,0.00013151,2]
[423691835,1780313444000,-439.0,0.00013151,2]
[423691805,1780313444000,-1249.0,0.00013151,2]
[423691828,1780313444000,-1258.45177235,0.00013151,2]
[423691807,1780313444000,-453.0,0.00013151,2]
[423691806,1780313444000,-1249.0,0.00013151,2]
[423691810,1780313444000,-1249.0,0.00013151,2]
[423691808,1780313444000,-1249.0,0.00013151,2]
[423691809,1780313444000,-453.0,0.00013151,2]
[423691816,1780313444000,-453.0,0.00013151,2]
[423691811,1780313444000,-453.0,0.00013151,2]
[423691815,1780313444000,-1249.0,0.00013151,2]
[423691814,1780313444000,-547.86684498,0.00013151,2]
[423691813,1780313444000,-500.0,0.00013151,2]
[423691812,1780313444000,-500.0,0.00013151,2]
[423691818,1780313444000,-453.0,0.00013151,2]
[423691837,1780313444000,-439.0,0.00013151,2]
[423691817,1780313444000,-1249.0,0.00013151,2]
[423691824,1780313444000,-468.0,0.00013151,2]
[423691819,1780313444000,-1249.0,0.00013151,2]
[423691820,1780313444000,-453.0,0.00013151,2]
[423691826,1780313444000,-150.0,0.00013151,2]
[423691825,1780313444000,-150.0,0.00013151,2]
[423691822,1780313444000,-453.0,0.00013151,2]
[423691823,1780313444000,-1249.0,0.00013151,2]
[423691830,1780313444000,-439.0,0.00013151,2]
[423691827,1780313444000,-174.37069545,0.00013151,2]
[423691829,1780313444000,-150.0,0.00013151,2]
[423691831,1780313444000,-278.88036096,0.00013151,2]
[423691833,1780313444000,-439.0,0.00013151,2]
[423691821,1780313444000,-1249.0,0.00013151,2]
[423691860,1780313444000,-500.0,0.00013151,2]
[423691861,1780313444000,-439.0,0.00013151,2]
[423691864,1780313444000,-500.0,0.00013151,2]
[423691892,1780313444000,-685.0,0.00013151,2]
[423691896,1780313444000,-685.0,0.00013151,2]
[423691897,1780313444000,-500.0,0.00013151,2]
[423691900,1780313444000,-408.67132594,0.00013151,2]
[423691901,1780313444000,-685.0,0.00013151,2]
[423691903,1780313444000,-685.0,0.00013151,2]
[423691902,1780313444000,-685.0,0.00013151,2]
[423691899,1780313444000,-685.0,0.00013151,2]
[423691904,1780313444000,-685.0,0.00013151,2]
[423691907,1780313444000,-685.0,0.00013151,2]
[423691908,1780313444000,-500.0,0.00013151,2]
[423691909,1780313444000,-500.0,0.00013151,2]
[423691894,1780313444000,-685.0,0.00013151,2]
[423691905,1780313444000,-685.0,0.00013151,2]
[423691912,1780313444000,-685.0,0.00013151,2]
[423691911,1780313444000,-500.0,0.00013151,2]
[423691914,1780313444000,-500.0,0.00013151,2]
[423691915,1780313444000,-500.0,0.00013151,2]
[423691913,1780313444000,-500.0,0.00013151,2]
[423691916,1780313444000,-685.0,0.00013151,2]
[423691920,1780313444000,-150.0,0.00013151,2]
[423691918,1780313444000,-439.0,0.00013151,2]
[423691919,1780313444000,-150.0,0.00013151,2]
[423691917,1780313444000,-534.04255896,0.00013151,2]
[423691921,1780313444000,-193.97666921,0.00013151,2]
[423691875,1780313444000,-500.0,0.00013151,2]
[423691910,1780313444000,-439.0,0.00013151,2]
[423691890,1780313444000,-685.0,0.00013151,2]
[423691906,1780313444000,-500.0,0.00013151,2]
[423691891,1780313444000,-500.0,0.00013151,2]
[423691893,1780313444000,-500.0,0.00013151,2]
[423691866,1780313444000,-500.0,0.00013151,2]
[423691868,1780313444000,-500.0,0.00013151,2]
[423691867,1780313444000,-439.0,0.00013151,2]
[423691873,1780313444000,-685.0,0.00013151,2]
[423691874,1780313444000,-500.0,0.00013151,2]
[423691872,1780313444000,-500.0,0.00013151,2]
[423691870,1780313444000,-500.0,0.00013151,2]
[423691869,1780313444000,-500.0,0.00013151,2]
[423691871,1780313444000,-500.0,0.00013151,2]
[423691877,1780313444000,-439.0,0.00013151,2]
[423691876,1780313444000,-500.0,0.00013151,2]
[423691879,1780313444000,-512.62058182,0.00013151,2]
[423691865,1780313444000,-439.0,0.00013151,2]
[423691884,1780313444000,-685.0,0.00013151,2]
[423691880,1780313444000,-685.0,0.00013151,2]
[423691898,1780313444000,-439.0,0.00013151,2]
[423691895,1780313444000,-685.0,0.00013151,2]
[423691887,1780313444000,-500.0,0.00013151,2]
[423691888,1780313444000,-685.0,0.00013151,2]
[423691886,1780313444000,-439.0,0.00013151,2]
[423691889,1780313444000,-500.0,0.00013151,2]
[423691883,1780313444000,-500.0,0.00013151,2]
[423691881,1780313444000,-500.0,0.00013151,2]
[423691878,1780313444000,-500.0,0.00013151,2]
[423691882,1780313444000,-685.0,0.00013151,2]
[423691885,1780313444000,-500.0,0.00013151,2]
[423691960,1780313445000,-171.0,0.00013151,2]
[423691969,1780313445000,-150.0,0.00013488,2]
[423691968,1780313445000,-150.0,0.00013488,2]
[423691949,1780313445000,-446.0,0.00013151,2]
[423691959,1780313445000,-171.0,0.00013151,2]
[423691956,1780313445000,-446.0,0.00013151,2]
[423691957,1780313445000,-446.0,0.00013151,2]
[423691954,1780313445000,-446.0,0.00013151,2]
[423691953,1780313445000,-446.0,0.00013151,2]
[423691952,1780313445000,-446.0,0.00013151,2]
[423691965,1780313445000,-150.0,0.00013488,2]
[423691955,1780313445000,-446.0,0.00013151,2]
[423691967,1780313445000,-150.0,0.00013488,2]
[423691961,1780313445000,-171.0,0.00013151,2]
[423691963,1780313445000,-174.95193931,0.00013151,2]
[423691964,1780313445000,-150.0,0.00013488,2]
[423691970,1780313445000,-150.0,0.00013488,2]
[423691962,1780313445000,-171.0,0.00013151,2]
[423691972,1780313445000,-150.0,0.00013488,2]
[423691978,1780313445000,-150.0,0.0001352,2]
[423691981,1780313445000,-150.0,0.00013539,2]
[423691979,1780313445000,-150.0,0.00013529,2]
[423691980,1780313445000,-341.46519996,0.00013533,2]
[423691982,1780313445000,-150.0,0.00013541,2]
[423691977,1780313445000,-341.46519996,0.00013518,2]
[423691951,1780313445000,-446.0,0.00013151,2]
[423691966,1780313445000,-150.0,0.00013488,2]
[423691958,1780313445000,-460.0,0.00013151,2]
[423691971,1780313445000,-150.0,0.00013488,2]
[423691950,1780313445000,-446.0,0.00013151,2]
[423691922,1780313445000,-685.0,0.00013151,2]
[423691923,1780313445000,-685.0,0.00013151,2]
[423691924,1780313445000,-439.0,0.00013151,2]
[423691925,1780313445000,-685.0,0.00013151,2]
[423691926,1780313445000,-439.94856175,0.00013151,2]
[423691928,1780313445000,-686.4612352,0.00013151,2]
[423691927,1780313445000,-685.0,0.00013151,2]
[423691930,1780313445000,-446.0,0.00013151,2]
[423691929,1780313445000,-446.0,0.00013151,2]
[423691932,1780313445000,-446.0,0.00013151,2]
[423691931,1780313445000,-500.0,0.00013151,2]
[423691933,1780313445000,-500.0,0.00013151,2]
[423691947,1780313445000,-446.0,0.00013151,2]
[423691934,1780313445000,-500.0,0.00013151,2]
[423691936,1780313445000,-500.0,0.00013151,2]
[423691937,1780313445000,-446.0,0.00013151,2]
[423691938,1780313445000,-245.69706371,0.00013151,2]
[423691942,1780313445000,-446.0,0.00013151,2]
[423691939,1780313445000,-210.60640966,0.00013151,2]
[423691940,1780313445000,-446.0,0.00013151,2]
[423691946,1780313445000,-446.0,0.00013151,2]
[423691941,1780313445000,-446.0,0.00013151,2]
[423691943,1780313445000,-446.0,0.00013151,2]
[423691945,1780313445000,-446.0,0.00013151,2]
[423691944,1780313445000,-446.0,0.00013151,2]
[423691948,1780313445000,-446.0,0.00013151,2]
[423691935,1780313445000,-446.0,0.00013151,2]
[423691973,1780313445000,-150.0,0.00013488,2]
[423691975,1780313445000,-341.46519996,0.00013503,2]
[423691976,1780313445000,-150.0,0.00013508,2]
[423692017,1780313445000,-536.27,0.00013698,2]
[423692012,1780313445000,-150.0,0.00013694,2]
[423692014,1780313445000,-507.7240582,0.00013698,2]
[423692013,1780313445000,-151.0,0.00013696,2]
[423692015,1780313445000,-500.0,0.00013698,2]
[423692016,1780313445000,-163.43660373,0.00013698,2]
[423692019,1780313445000,-536.27,0.00013698,2]
[423692029,1780313445000,-536.27,0.00013698,2]
[423692018,1780313445000,-536.27,0.00013698,2]
[423692020,1780313445000,-536.27,0.00013698,2]
[423692025,1780313445000,-536.27,0.00013698,2]
[423692021,1780313445000,-536.27,0.00013698,2]
[423692009,1780313445000,-150.0,0.00013679,2]
[423692027,1780313445000,-536.27,0.00013698,2]
[423692023,1780313445000,-536.27,0.00013698,2]
[423692024,1780313445000,-536.27,0.00013698,2]
[423692026,1780313445000,-536.27,0.00013698,2]
[423692032,1780313445000,-536.27,0.00013698,2]
[423692030,1780313445000,-536.27,0.00013698,2]
[423692033,1780313445000,-536.27,0.00013698,2]
[423692031,1780313445000,-536.27,0.00013698,2]
[423692037,1780313445000,-536.27,0.00013698,2]
[423692034,1780313445000,-536.27,0.00013698,2]
[423692036,1780313445000,-536.27,0.00013698,2]
[423692035,1780313445000,-536.27,0.00013698,2]
[423691974,1780313445000,-341.46519996,0.00013488,2]
[423692028,1780313445000,-536.27,0.00013698,2]
[423692007,1780313445000,-341.46519996,0.00013669,2]
[423692022,1780313445000,-536.27,0.00013698,2]
[423692010,1780313445000,-341.46519996,0.00013684,2]
[423692008,1780313445000,-150.0,0.00013672,2]
[423691983,1780313445000,-341.46519996,0.00013548,2]
[423691985,1780313445000,-150.0,0.00013551,2]
[423691987,1780313445000,-150.0,0.0001357,2]
[423691992,1780313445000,-341.46519996,0.00013594,2]
[423691990,1780313445000,-150.0,0.0001359,2]
[423691986,1780313445000,-341.46519996,0.00013563,2]
[423691989,1780313445000,-150.0,0.00013583,2]
[423691988,1780313445000,-341.46519996,0.00013578,2]
[423691984,1780313445000,-150.0,0.00013549,2]
[423691991,1780313445000,-150.0,0.00013591,2]
[423691993,1780313445000,-150.0,0.00013595,2]
[423691994,1780313445000,-53798.80301719,0.00013598,2]
[423692038,1780313445000,-536.27,0.00013698,2]
[423692005,1780313445000,-150.0,0.00013652,2]
[423691996,1780313445000,-150.0,0.00013611,2]
[423692006,1780313445000,-341.46519996,0.00013654,2]
[423692003,1780313445000,-150.0,0.00013647,2]
[423692002,1780313445000,-150.0,0.00013643,2]
[423692001,1780313445000,-341.46519996,0.00013639,2]
[423692000,1780313445000,-150.0,0.00013631,2]
[423692011,1780313445000,-150.0,0.00013693,2]
[423691997,1780313445000,-150.0,0.00013613,2]
[423691995,1780313445000,-341.46519996,0.00013609,2]
[423692004,1780313445000,-150.0,0.00013648,2]
[423691998,1780313445000,-150.0,0.00013615,2]
[423691999,1780313445000,-341.46519996,0.00013624,2]
[423692081,1780313446000,-616.09,0.00013698,2]
[423692077,1780313446000,-500.0,0.00013698,2]
[423692075,1780313446000,-500.0,0.00013698,2]
[423692070,1780313446000,-509.59443695,0.00013698,2]
[423692086,1780313446000,-616.09,0.00013698,2]
[423692074,1780313446000,-500.0,0.00013698,2]
[423692068,1780313446000,-500.0,0.00013698,2]
[423692071,1780313446000,-500.0,0.00013698,2]
[423692069,1780313446000,-500.0,0.00013698,2]
[423692083,1780313446000,-616.09,0.00013698,2]
[423692076,1780313446000,-500.0,0.00013698,2]
[423692079,1780313446000,-504.50119994,0.00013698,2]
[423692108,1780313446000,-500.0,0.00013698,2]
[423692099,1780313446000,-500.0,0.00013698,2]
[423692093,1780313446000,-616.09,0.00013698,2]
[423692096,1780313446000,-616.09,0.00013698,2]
[423692112,1780313446000,-500.0,0.00013698,2]
[423692101,1780313446000,-500.0,0.00013698,2]
[423692103,1780313446000,-500.0,0.00013698,2]
[423692119,1780313446000,-500.0,0.00013698,2]
[423692114,1780313446000,-500.0,0.00013698,2]
[423692105,1780313446000,-500.0,0.00013698,2]
[423692116,1780313446000,-500.0,0.00013698,2]
[423692118,1780313446000,-500.0,0.00013698,2]
[423692073,1780313446000,-500.0,0.00013698,2]
[423692088,1780313446000,-616.09,0.00013698,2]
[423692072,1780313446000,-500.0,0.00013698,2]
[423692040,1780313446000,-536.43141651,0.00013698,2]
[423692067,1780313446000,-500.0,0.00013698,2]
[423692039,1780313446000,-536.27,0.00013698,2]
[423692041,1780313446000,-339.61379618,0.00013698,2]
[423692042,1780313446000,-500.0,0.00013698,2]
[423692052,1780313446000,-500.0,0.00013698,2]
[423692045,1780313446000,-500.0,0.00013698,2]
[423692049,1780313446000,-500.0,0.00013698,2]
[423692047,1780313446000,-500.0,0.00013698,2]
[423692051,1780313446000,-500.0,0.00013698,2]
[423692044,1780313446000,-500.0,0.00013698,2]
[423692043,1780313446000,-500.0,0.00013698,2]
[423692048,1780313446000,-500.0,0.00013698,2]
[423692050,1780313446000,-500.0,0.00013698,2]
[423692066,1780313446000,-500.0,0.00013698,2]
[423692046,1780313446000,-500.0,0.00013698,2]
[423692054,1780313446000,-500.0,0.00013698,2]
[423692056,1780313446000,-500.0,0.00013698,2]
[423692055,1780313446000,-500.0,0.00013698,2]
[423692058,1780313446000,-500.0,0.00013698,2]
[423692060,1780313446000,-500.0,0.00013698,2]
[423692059,1780313446000,-500.0,0.00013698,2]
[423692061,1780313446000,-165.3306902,0.00013698,2]
[423692062,1780313446000,-500.0,0.00013698,2]
[423692057,1780313446000,-500.0,0.00013698,2]
[423692063,1780313446000,-500.0,0.00013698,2]
[423692065,1780313446000,-500.0,0.00013698,2]
[423692064,1780313446000,-500.0,0.00013698,2]
[423692053,1780313446000,-181.33557319,0.00013698,2]
[423692110,1780313446000,-500.0,0.00013698,2]
[423692121,1780313446000,-500.0,0.00013698,2]
[423692136,1780313446000,-500.0,0.00013698,2]
[423692168,1780313446000,-982.53,0.00013699,2]
[423692173,1780313446000,-2225.64037174,0.00013699,2]
[423692165,1780313446000,-166.66,0.00013699,2]
[423692172,1780313446000,-2225.64037174,0.00013699,2]
[423692170,1780313446000,-2225.64037174,0.00013699,2]
[423692169,1780313446000,-2225.64037174,0.00013699,2]
[423692175,1780313446000,-2225.64037174,0.00013699,2]
[423692174,1780313446000,-2225.64037174,0.00013699,2]
[423692176,1780313446000,-2225.64037174,0.00013699,2]
[423692178,1780313446000,-2225.64037174,0.00013699,2]
[423692185,1780313446000,-2225.64037174,0.00013699,2]
[423692181,1780313446000,-2225.64037174,0.00013699,2]
[423692182,1780313446000,-2225.64037174,0.00013699,2]
[423692183,1780313446000,-2225.64037174,0.00013699,2]
[423692177,1780313446000,-2225.64037174,0.00013699,2]
[423692179,1780313446000,-2225.64037174,0.00013699,2]
[423692184,1780313446000,-2225.64037174,0.00013699,2]
[423692180,1780313446000,-2225.64037174,0.00013699,2]
[423692187,1780313446000,-2225.64037174,0.00013699,2]
[423692186,1780313446000,-2225.64037174,0.00013699,2]
[423692188,1780313446000,-2225.64037174,0.00013699,2]
[423692190,1780313446000,-2225.64037174,0.00013699,2]
[423692192,1780313446000,-2225.64037174,0.00013699,2]
[423692191,1780313446000,-2225.64037174,0.00013699,2]
[423692123,1780313446000,-500.0,0.00013698,2]
[423692171,1780313446000,-2225.64037174,0.00013699,2]
[423692167,1780313446000,-3623.42,0.00013699,2]
[423692189,1780313446000,-2225.64037174,0.00013699,2]
[423692163,1780313446000,-501.92576951,0.00013698,2]
[423692166,1780313446000,-200.0,0.00013699,2]
[423692130,1780313446000,-500.0,0.00013698,2]
[423692144,1780313446000,-500.0,0.00013698,2]
[423692128,1780313446000,-500.0,0.00013698,2]
[423692134,1780313446000,-500.0,0.00013698,2]
[423692126,1780313446000,-500.0,0.00013698,2]
[423692149,1780313446000,-2555.22,0.00013698,2]
[423692142,1780313446000,-500.0,0.00013698,2]
[423692140,1780313446000,-500.0,0.00013698,2]
[423692146,1780313446000,-500.0,0.00013698,2]
[423692148,1780313446000,-405.20855202,0.00013698,2]
[423692132,1780313446000,-500.0,0.00013698,2]
[423692150,1780313446000,-2555.22,0.00013698,2]
[423692138,1780313446000,-500.0,0.00013698,2]
[423692161,1780313446000,-500.0,0.00013698,2]
[423692153,1780313446000,-2555.22,0.00013698,2]
[423692164,1780313446000,-500.0,0.00013698,2]
[423692159,1780313446000,-500.0,0.00013698,2]
[423692155,1780313446000,-2555.22,0.00013698,2]
[423692160,1780313446000,-500.0,0.00013698,2]
[423692157,1780313446000,-500.0,0.00013698,2]
[423692156,1780313446000,-500.0,0.00013698,2]
[423692162,1780313446000,-505.56076516,0.00013698,2]
[423692154,1780313446000,-2555.22,0.00013698,2]
[423692151,1780313446000,-2555.22,0.00013698,2]
[423692152,1780313446000,-2555.22,0.00013698,2]
[423692158,1780313446000,-500.0,0.00013698,2]
[423692228,1780313447000,-2225.64037174,0.00013699,2]
[423692245,1780313447000,-2225.64037174,0.00013699,2]
[423692235,1780313447000,-2225.64037174,0.00013699,2]
[423692226,1780313447000,-2225.64037174,0.00013699,2]
[423692221,1780313447000,-2225.64037174,0.00013699,2]
[423692229,1780313447000,-2225.64037174,0.00013699,2]
[423692223,1780313447000,-2225.64037174,0.00013699,2]
[423692222,1780313447000,-2225.64037174,0.00013699,2]
[423692219,1780313447000,-2225.64037174,0.00013699,2]
[423692224,1780313447000,-2225.64037174,0.00013699,2]
[423692234,1780313447000,-2225.64037174,0.00013699,2]
[423692238,1780313447000,-2225.64037174,0.00013699,2]
[423692236,1780313447000,-2225.64037174,0.00013699,2]
[423692239,1780313447000,-2225.64037174,0.00013699,2]
[423692243,1780313447000,-2225.64037174,0.00013699,2]
[423692241,1780313447000,-2225.64037174,0.00013699,2]
[423692242,1780313447000,-2225.64037174,0.00013699,2]
[423692244,1780313447000,-2225.64037174,0.00013699,2]
[423692240,1780313447000,-2225.64037174,0.00013699,2]
[423692247,1780313447000,-2225.64037174,0.00013699,2]
[423692246,1780313447000,-2225.64037174,0.00013699,2]
[423692248,1780313447000,-2225.64037174,0.00013699,2]